Workbook

Sheet финансирование
AL2: Приложение 1
F3: ОТЧЕТ
F4: об исполнении финансирования муниципальной программы города Сочи
F5: "Формирование современной городской среды"
F6: наименование муниципальной программы
F7: за полугодие 2019 год
F8: по состоянию на 01.07.2019 год
A10: Номер мероп-риятия1) | B10: Наименование отдельного мероприятия, подпрограммы, мероприятия подпрограммы, ведомственной целевой программы | C10: Муниципальный заказчик, получатель субсидий (субвенций), ответственный за выполнение мероприятий, исполнитель | D10: Объем финансирования, предусмотренный программой на текущий год, тыс. рублей | J10: Объем финансирования, предусмотренный уточненной бюджетной росписью на отчетную дату, тыс. рублей | R10: Профинансировано (кассовое исполнение) в отчетном периоде, тыс. рублей | Z10: Освоено в отчетном периоде, тыс. рублей2) | AH10: Причинаы неосвоения средств по мероприятию 4) | AI10: Непосредственный результат реализации мероприятия | AM10: Отметка о выполнении мероприятия (выполнено / не выполнено), причина невыполнения мероприятия | AN10: Причина неосвоения средств по мероприятию
D11: ВСЕГО | E11: федераль-ный бюджет | F11: краевой бюджет | G11: бюджет города Сочи | H11: бюджет города Сочи 3) | I11: внебюджетные источники | J11: ВСЕГО | K11: федераль-ный бюджет | L11: неисполь-зованные остатки федераль-ного бюджета прошлых лет | M11: краевой бюджет | N11: неисполь-зованные остатки краевого бюджета прошлых лет | O11: бюджет города Сочи | P11: бюджет города Сочи 3) | Q11: внебюджет-ные источники | R11: ВСЕГО | S11: федераль-ный бюджет | T11: неисполь-зованные остатки федераль-ного бюджета прошлых лет | U11: краевой бюджет | V11: неисполь-зованные остатки краевого бюджета прошлых лет | W11: бюджет города Сочи | X11: бюджет города Сочи 3) | Y11: внебюджет-ные источники | Z11: ВСЕГО | AA11: федераль-ный бюджет | AB11: неисполь-зованные остатки федераль-ного бюджета прошлых лет | AC11: краевой бюджет | AD11: неисполь-зованные остатки краевого бюджета прошлых лет | AE11: бюджет города Сочи | AF11: бюджет города Сочи 3) | AG11: внебюджет-ные источники | AI11: наименование | AJ11: единица измерения | AK11: плановое значение | AL11: фактическое значение
A12: 1 | B12: 2 | C12: 3 | D12: 4 | E12: 5 | F12: 6 | G12: 7 | H12: 8 | I12: 9 | J12: 10 | K12: 11 | L12: 12.00 | M12: 13 | N12: 14 | O12: 15 | P12: 16 | Q12: 17 | R12: 18 | S12: 19 | T12: 20 | U12: 21 | V12: 22 | W12: 23 | X12: 24 | Y12: 25 | Z12: 26 | AA12: 27 | AB12: 28 | AC12: 29 | AD12: 30 | AE12: 31 | AF12: 32 | AG12: 33 | AH12: 34 | AI12: 35 | AJ12: 36 | AK12: 37 | AL12: 38 | AM12: 39 | AN12: 40
B13: ВСЕГО, по муниципальной программе, в том числе: | D13: =D14 -> 117,262.7 | E13: 83,388.1 | F13: 3,474.6 | G13: 30,000.0 | H13: 0.0 | I13: =I23 -> 400.0 | J13: =J21 -> 116,862.7 | K13: =K21 -> 83,388.1 | L13: 0.0 | M13: 3,474.6 | N13: 0.0 | O13: 30,000.0 | P13: 0.0 | Q13: 0.0 | R13: 5,537.4 | S13: 0.0 | T13: 0.0 | U13: 0.0 | V13: 0.0 | W13: 5,537.4 | X13: 0.0 | Y13: 0.0 | Z13: =SUM(AA13:AG13) -> 5,537.4 | AA13: 0.0 | AB13: =AB14 -> 0.0 | AC13: 0.0 | AD13: 0.0 | AE13: =AE21 -> 5,537.4 | AF13: 0.0 | AG13: 0.0 | AI13: Х | AJ13: Х | AK13: Х | AL13: Х | AM13: Х | AN13: Х
B14: Всего по отдельным мероприятиям муниципальной программы, в том числе: | D14: =D15+D34 -> 117,262.7 | E14: =E15+E27+E32+E34 -> 83,388.1 | F14: =F15+F27+F32+F34 -> 3,474.6 | G14: =G15+G23+G32 -> 26,892.2 | H14: =H15+H27+H32 -> 0.0 | I14: =I15+I27+I32 -> 100.0 | J14: =J15+J34 -> 119,263.1 | K14: =K15+K27+K32 -> 0.0 | L14: =L15 -> 0.0 | M14: =M15+M27+M32 -> 0.0 | N14: 0.0 | O14: =O15+O27+O32 -> 18,292.4 | P14: 0.0 | Q14: 0.0 | R14: =S14+T14+U14+V14+W14+X14+Y14 -> 11,074.8 | S14: =S15+S34 -> 0.0 | T14: =T15 -> 0.0 | U14: =U15+U34 -> 0.0 | V14: 0.0 | W14: =W15+W34 -> 11,074.8 | X14: =X15 -> 0.0 | Y14: 0.0 | Z14: =Z15+Z34 -> 11,074.8 | AA14: =AA15+AA34 -> 0.0 | AB14: 0.0 | AC14: =AC15+AC34 -> 0.0 | AD14: 0.0 | AE14: =AE15+AE34 -> 11,074.8 | AF14: 0.0 | AG14: 0.0 | AI14: Х | AJ14: Х | AK14: Х | AL14: Х | AM14: Х | AN14: Х
A15: 1. | B15: «Выполнение работ по благоустройству дворовых территорий» | D15: =D16+D17+D18+D19+D23 -> 13,100.2 | E15: =E16+E17+E18+E19+E23 -> 0.0 | F15: =F16+F17+F18+F19+F23 -> 0.0 | G15: =G16+G17+G18+G19+G23 -> 12,700.2 | H15: =H16+H17+H18+H19+H23 -> 0.0 | I15: =SUM(I16:I19) -> 0.0 | J15: =J16+J17+J18+J19+J23 -> 15,100.6 | K15: =K16+K17+K17+K18+K23 -> 0.0 | L15: =L16+L17+L17+L18+L23 -> 0.0 | M15: =M16+M17+M18+M19+M23 -> 0.0 | N15: =N16+N17+N18+N19+N23 -> 0.0 | O15: =O16+O17+O18+O19+O23 -> 15,100.6 | P15: 0.0 | Q15: 0.0 | R15: 9,793.6 | S15: =S16+S17+S18+S19+S23 -> 0.0 | T15: 0.0 | U15: =U16+U17+U18+U19+U23 -> 0.0 | V15: 0.0 | W15: =W16+W17+W18+W19+W23 -> 9,793.6 | X15: 0.0 | Y15: 0.0 | Z15: =Z16+Z17+Z18+Z19+Z23 -> 9,793.6 | AA15: =AA16+AA17+AA18+AA19+AA23 -> 0.0 | AB15: 0.0 | AC15: =AC16+AC17+AC18+AC19+AC23 -> 0.0 | AD15: 0.0 | AE15: =AE16+AE17+AE18+AE19+AE23 -> 9,793.6 | AF15: 0.0 | AG15: 0.0 | AI15: Х | AJ15: Х | AK15: Х | AL15: Х | AM15: Х | AN15: Х
A16: 1.1 | B16: Выполнение работ по благоустройству дворовых территорий Центрального внутригородского района | C16: Администрация Центрального внутригородского района города Сочи | D16: =E16+F16+G16+H16+I16 -> 0.0 | E16: 0.0 | F16: 0.0 | G16: 0.0 | H16: 0.0 | I16: 0.0 | J16: =K16+L16+M16+N16+O16+P16+Q16 -> 803.4 | K16: 0.0 | L16: 0.0 | M16: 0.0 | N16: 0.0 | O16: 803.4 | P16: 0.0 | Q16: 0.0 | R16: 1,182.1 | S16: 0.0 | T16: 0.0 | U16: 0.0 | V16: 0.0 | W16: 1,182.1 | X16: 0.0 | Y16: 0.0 | Z16: =AA16+AB16+AC16+AD16+AE16+AF16+AG16 -> 1,182.1 | AA16: 0.0 | AB16: 0.0 | AC16: 0.0 | AD16: 0.0 | AE16: 1,182.1 | AF16: 0.0 | AG16: 0.0 | AI16: 18 дизайн-проектов | AJ16: ед. | AK16: 18 | AL16: 18 | AM16: выполнено
A17: 1.2 | B17: Выполнение работ по благоустройству дворовых территорий Хостинского внутригородского района | C17: Администрация Хостинского внутригородского района города Сочи | D17: =SUM(E17:I17) -> 0.0 | E17: 0.0 | F17: 0.0 | G17: 0.0 | H17: 0.0 | I17: 0.0 | J17: =SUM(K17:O17) -> 526.0 | K17: 0.0 | L17: 0.0 | M17: 0.0 | N17: 0.0 | O17: 526.0 | P17: 0.0 | Q17: 0.0 | R17: 1,456.8 | S17: 0.0 | T17: 0.0 | U17: 0.0 | V17: 0.0 | W17: 1,456.8 | X17: 0.0 | Y17: 0.0 | Z17: =AA17+AB17+AC17+AD17+AE17+AF17+AG17 -> 1,456.8 | AA17: 0.0 | AB17: 0.0 | AC17: 0.0 | AD17: 0.0 | AE17: 1,456.8 | AF17: 0.0 | AG17: 0.0 | AI17: 18 дизайн-проектов | AJ17: ед. | AK17: 18 | AL17: 18 | AM17: выполнено
A18: 1.3 | B18: Выполнение работ по благоустройству дворовых территорий Адлерского внутригородского района | C18: Администрация Адлерского внутригородского района города Сочи | D18: =E18+F18+G18+H18+I18 -> 0.0 | E18: 0.0 | F18: 0.0 | G18: 0.0 | H18: 0.0 | I18: 0.0 | J18: =SUM(K18:O18) -> 531.0 | K18: 0.0 | L18: 0.0 | M18: 0.0 | N18: 0.0 | O18: 531.0 | P18: 0.0 | Q18: 0.0 | R18: 2,053.0 | S18: 0.0 | T18: 0.0 | U18: 0.0 | V18: 0.0 | W18: 2,053.0 | X18: 0.0 | Y18: 0.0 | Z18: =AA18+AB18+AC18+AD18+AE18+AF18+AG18 -> 2,053.0 | AA18: 0.0 | AB18: 0.0 | AC18: 0.0 | AD18: 0.0 | AE18: 2,053.0 | AF18: 0.0 | AG18: 0.0 | AI18: 18 дизайн-проектов | AJ18: ед. | AK18: 18 | AL18: 18 | AM18: выполнено
A19: 1.4 | B19: Выполнение работ по благоустройству дворовых территорий Лазаревского внутригородского района | C19: Администрация Лазаревского внутригородского района города Сочи | D19: =E19+F19+G19+H19+I19 -> 0.0 | E19: 0.0 | F19: 0.0 | G19: 0.0 | H19: 0.0 | I19: 0.0 | J19: =SUM(K19:O19) -> 540.0 | K19: 0.0 | L19: 0.0 | M19: 0.0 | N19: 0.0 | O19: 540.0 | P19: 0.0 | Q19: 0.0 | R19: 845.5 | S19: 0.0 | T19: 0.0 | U19: 0.0 | V19: 0.0 | W19: 845.5 | X19: 0.0 | Y19: 0.0 | Z19: =AA19+AB19+AC19+AD19+AE19+AF19+AG19 -> 845.5 | AA19: 0.0 | AB19: 0.0 | AC19: 0.0 | AD19: 0.0 | AE19: 845.5 | AF19: 0.0 | AG19: 0.0 | AI19: 18 дизайн-проектов | AJ19: ед. | AK19: 18 | AL19: 18 | AM19: выполнено | AP19: 137366.9
A20: 1.1.4 | B20: Школа на 800 мест с организацией отдыха и оздоровления детей по ул.Ландышевая в микрорайоне Мамайка Центрального района г.Сочи (включая проектно-изыскательские работы) | D20: =E20+F20+G20+H20+I20 -> 11,088.3 | G20: 11,088.3 | J20: 53 093,4 | K20: 37,835.4 | L20: 11,948.0 | M20: 3,210.0 | O20: 11,088.3 | W20: 11,047.2 | Z20: =SUM(AA20:AG20) -> 11,047.2 | AE20: 11,047.2 | AI20: выполнение проектно-изыскательских работ | AM20: не выполнено | AN20: Кассовое исполнение 3-4 квартал 2018 года. | AO20: 41.09034
B21: Всего по отдельным мероприятиям муниципальной программы, в том числе: | D21: =D22 -> 13,100.2 | E21: =E22 -> 0.0 | F21: 3,474.6 | G21: 30,000.0 | H21: =H22 -> 0.0 | I21: 400.0 | J21: =J22+J34 -> 116,862.7 | K21: 83,388.1 | L21: 0.0 | M21: 3,474.6 | N21: 0.0 | O21: 30,000.0 | P21: 0.0 | Q21: 0.0 | R21: 5,537.4 | S21: 0.0 | T21: 0.0 | U21: 0.0 | V21: 0.0 | W21: 5,537.4 | X21: 0.0 | Y21: 0.0 | Z21: =SUM(AA21:AG21) -> 5,537.4 | AA21: 0.0 | AB21: =AB22 -> 0.0 | AC21: 0.0 | AD21: 0.0 | AE21: =AE22+AE34 -> 5,537.4 | AF21: 0.0 | AG21: 0.0 | AI21: Х | AJ21: Х | AK21: Х | AL21: Х | AM21: Х | AN21: Х
A22: 1. | B22: «Выполнение работ по благоустройству дворовых территорий» | D22: =D23 -> 13,100.2 | E22: =E23 -> 0.0 | F22: 0.0 | G22: 12,700.2 | H22: 0.0 | I22: 400.0 | J22: 12,700.2 | K22: 0.0 | L22: 0.0 | M22: 0.0 | N22: 0.0 | O22: 12,700.2 | P22: 0.0 | Q22: 0.0 | R22: 4,256.2 | S22: 0.0 | T22: 0.0 | U22: 0.0 | V22: 0.0 | W22: 4,256.2 | X22: =X23 -> 0.0 | Y22: 0.0 | Z22: 4,256.2 | AA22: 0.0 | AB22: 0.0 | AC22: 0.0 | AD22: 0.0 | AE22: 4,256.2 | AF22: 0.0 | AG22: 0.0 | AI22: Х | AJ22: Х | AK22: Х | AL22: Х | AM22: Х | AN22: Х
A23: 1.5. | B23: Основное мероприятие «Выполнение работ по благоустройству дворовых территорий, в тм числе разработка проектно-сметной документации-всего» | C23: Департамент строительства администрации города Сочи, МКУ города Сочи «Управление капитального строительства» | D23: =SUM(E23:I23) -> 13,100.2 | E23: 0.0 | F23: 0.0 | G23: 12,700.2 | H23: =H24+H29 -> 0.0 | I23: 400.0 | J23: 12,700.2 | K23: 0.0 | L23: 0.0 | M23: 0.0 | N23: 0.0 | O23: 12,700.2 | P23: =P24+P26 -> 0.0 | Q23: =Q24 -> 0.0 | R23: =R24+R29 -> 4,256.2 | S23: 0.0 | T23: 0.0 | U23: 0.0 | V23: 0.0 | W23: 4,256.2 | X23: 0.0 | Y23: 0.0 | Z23: =SUM(AA23:AG23) -> 4,256.2 | AA23: 0.0 | AB23: =AB24+AC29 -> 0.0 | AC23: 0.0 | AD23: =AD24+AD29 -> 0.0 | AE23: =AE24+AE29 -> 4,256.2 | AF23: 0.0 | AG23: 0.0
A24: 1.5.1 | B24: Выполнение работ по благоустройству дворовых территорий - всего | C24: Департамент строительства администрации города Сочи, МКУ города Сочи «Управление капитального строительства» | D24: =D25+D26+D27+D28 -> 7,200.0 | E24: 0.0 | F24: 0.0 | G24: 6,800.0 | H24: 0.0 | I24: 400.0 | J24: 6,800.0 | K24: 0.0 | L24: 0.0 | M24: 0.0 | N24: 0.0 | O24: 6,800.0 | P24: 0.0 | Q24: 0.0 | R24: 0.0 | S24: 0.0 | T24: 0.0 | U24: 0.0 | V24: 0.0 | W24: 0.0 | X24: 0.0 | Y24: 0.0 | Z24: 0.0 | AA24: 0.0 | AB24: 0.0 | AC24: 0.0 | AD24: 0.0 | AE24: 0.0 | AF24: 0.0 | AG24: 0.0
A25: 1.5.1.1. | B25: Выполнение работ по благоустройству дворовых территорий Центрального внутригородского района | C25: Департамент строительства администрации города Сочи, МКУ города Сочи «Управление капитального строительства» | D25: =SUM(E25:I25) -> 1,800.0 | E25: 0.0 | F25: 0.0 | G25: 1,700.0 | H25: 0.0 | I25: 100.0 | J25: =K25+L25+M25+N25+O25+P25+Q25 -> 1,700.0 | K25: 0.0 | L25: 0.0 | M25: 0.0 | N25: 0.0 | O25: 1,700.0 | P25: 0.0 | Q25: 0.0 | R25: =S25+T25+U25+V25+W25+X25+Y25 -> 0.0 | S25: 0.0 | T25: 0.0 | U25: 0.0 | V25: 0.0 | W25: 0.0 | X25: 0.0 | Y25: 0.0 | Z25: =AA25+AB25+AC25+AD25+AE25+AF25+AG25 -> 0.0 | AA25: 0.0 | AB25: 0.0 | AC25: 0.0 | AD25: 0.0 | AE25: 0.0 | AF25: 0.0 | AG25: 0.0 | AH25: Средства бюджета города Сочи предусмотрены для обеспечения софинансирования из краевого бюджета. На 01.07.2019 средства из краевого бюджета не профинансированы | AI25: Благоустройство дворовых территорий | AJ25: ед | AK25: 3 | AL25: 0 | AM25: не выполнено | AN25: Средства бюджета города Сочи предусмотрены для обеспечения софинансирования из краевого бюджета. На 01.07.2019 средства из краевого бюджета не профинансированы
A26: 1.5.1.2. | B26: Выполнение работ по благоустройству дворовых территорий Хостинского внутригородского района | C26: Департамент строительства администрации города Сочи, МКУ города Сочи «Управление капитального строительства» | D26: =SUM(E26:I26) -> 1,800.0 | E26: 0.0 | F26: 0.0 | G26: 1,700.0 | H26: 0.0 | I26: 100.0 | J26: =K26+L26+M26+N26+O26+P26+Q26 -> 1,700.0 | K26: 0.0 | L26: 0.0 | M26: 0.0 | N26: 0.0 | O26: 1,700.0 | P26: 0.0 | Q26: 0.0 | R26: =S26+T26+U26+V26+W26+X26+Y26 -> 0.0 | S26: 0.0 | T26: 0.0 | U26: 0.0 | V26: 0.0 | W26: 0.0 | X26: 0.0 | Y26: 0.0 | Z26: =AA26+AB26+AC26+AD26+AE26+AF26+AG26 -> 0.0 | AA26: 0.0 | AB26: 0.0 | AC26: 0.0 | AD26: 0.0 | AE26: 0.0 | AF26: 0.0 | AG26: 0.0 | AH26: Средства бюджета города Сочи предусмотрены для обеспечения софинансирования из краевого бюджета. На 01.07.2019 средства из краевого бюджета не профинансированы | AI26: Благоустройство дворовых территорий | AJ26: ед | AK26: 3 | AL26: 0 | AM26: не выполнено | AN26: Средства бюджета города Сочи предусмотрены для обеспечения софинансирования из краевого бюджета. На 01.07.2019 средства из краевого бюджета не профинансированы
A27: 1.5.1.3. | B27: Выполнение работ по благоустройству дворовых территорий Адлерского внутригородского района | D27: =SUM(E27:I27) -> 1,800.0 | E27: 0.0 | F27: 0.0 | G27: 1,700.0 | H27: =SUM(H28:H31) -> 0.0 | I27: 100.0 | J27: =K27+L27+M27+N27+O27+P27+Q27 -> 1,700.0 | K27: 0.0 | L27: 0.0 | M27: 0.0 | N27: 0.0 | O27: 1,700.0 | P27: 0.0 | Q27: 0.0 | R27: =S27+T27+U27+V27+W27+X27+Y27 -> 0.0 | S27: 0.0 | T27: 0.0 | U27: 0.0 | V27: 0.0 | W27: 0.0 | X27: 0.0 | Y27: 0.0 | Z27: =AA27+AB27+AC27+AD27+AE27+AF27+AG27 -> 0.0 | AA27: 0.0 | AB27: 0.0 | AC27: 0.0 | AD27: 0.0 | AE27: 0.0 | AF27: 0.0 | AG27: 0.0 | AH27: Средства бюджета города Сочи предусмотрены для обеспечения софинансирования из краевого бюджета. На 01.07.2019 средства из краевого бюджета не профинансированы | AI27: Благоустройство дворовых территорий | AJ27: ед | AK27: 3 | AL27: 0 | AM27: не выполнено | AN27: Средства бюджета города Сочи предусмотрены для обеспечения софинансирования из краевого бюджета. На 01.07.2019 средства из краевого бюджета не профинансированы
A28: 1.5.1.4. | B28: Выполнение работ по благоустройству дворовых территорий Лазаревского внутригородского района | C28: Департамент строительства администрации города Сочи, МКУ города Сочи «Управление капитального строительства» | D28: =SUM(E28:I28) -> 1,800.0 | E28: 0.0 | F28: 0.0 | G28: 1,700.0 | H28: =SUM(H29:H32) -> 0.0 | I28: 100.0 | J28: =K28+L28+M28+N28+O28+P28+Q28 -> 1,700.0 | K28: 0.0 | L28: 0.0 | M28: 0.0 | N28: 0.0 | O28: 1,700.0 | P28: 0.0 | Q28: 0.0 | R28: =S28+T28+U28+V28+W28+X28+Y28 -> 0.0 | S28: 0.0 | T28: 0.0 | U28: 0.0 | V28: 0.0 | W28: 0.0 | X28: 0.0 | Y28: 0.0 | Z28: =AA28+AB28+AC28+AD28+AE28+AF28+AG28 -> 0.0 | AA28: 0.0 | AB28: 0.0 | AC28: 0.0 | AD28: 0.0 | AE28: 0.0 | AF28: 0.0 | AG28: 0.0 | AH28: Средства бюджета города Сочи предусмотрены для обеспечения софинансирования из краевого бюджета. На 01.07.2019 средства из краевого бюджета не профинансированы | AI28: Благоустройство дворовых территорий | AJ28: ед. | AK28: 3 | AL28: 0 | AM28: не выполнено | AN28: Средства бюджета города Сочи предусмотрены для обеспечения софинансирования из краевого бюджета. На 01.07.2019 средства из краевого бюджета не профинансированы
A29: 1.5.2. | B29: Выполнение работ по разработке проектно-сметной документации дворовых территорий-всего | C29: Департамент строительства администрации города Сочи, МКУ города Сочи «Управление капитального строительства» | D29: =D30+D31+D32+D33 -> 5,900.2 | E29: =E30+E31+E32+E33 -> 0.0 | F29: 0.0 | G29: 5,900.2 | H29: 0.0 | I29: 0.0 | J29: 5,900.2 | K29: 0.0 | L29: 0.0 | M29: 0.0 | N29: 0.0 | O29: 5,900.2 | P29: 0.0 | Q29: 0.0 | R29: 4,256.2 | S29: 0.0 | T29: 0.0 | U29: 0.0 | V29: 0.0 | W29: 4,256.2 | X29: 0.0 | Y29: 0.0 | Z29: 4,256.2 | AA29: 0.0 | AB29: 0.0 | AC29: 0.0 | AD29: 0.0 | AE29: 4,256.2 | AF29: 0.0 | AG29: 0.0
A30: 1.5.2.1. | B30: Выполнение работ по разработке проктно-сметной документации дворовых территорий Центрального внутригородского района (разработка сметной документации) | C30: Департамент строительства администрации города Сочи, МКУ города Сочи «Управление капитального строительства» | D30: =SUM(E30:I30) -> 1,492.4 | E30: 0.0 | F30: 0.0 | G30: 1,492.4 | H30: 0.0 | I30: 0.0 | J30: =K30+L30+M30+N30+O30+P30+Q30 -> 1,492.4 | K30: 0.0 | L30: 0.0 | M30: 0.0 | N30: 0.0 | O30: 1,492.4 | P30: 0.0 | Q30: 0.0 | R30: =S30+T30+U30+V30+W30+X30+Y30 -> 860.1 | S30: 0.0 | T30: 0.0 | U30: 0.0 | V30: 0.0 | W30: 860.1 | X30: 0.0 | Y30: 0.0 | Z30: =SUM(AA30:AG30) -> 860.1 | AA30: 0.0 | AB30: 0.0 | AC30: 0.0 | AD30: 0.0 | AE30: 860.1 | AF30: 0.0 | AG30: 0.0 | AH30: Неосвоение в сумме 632,3 тыс. рублей - муниципальный контракт приостановлен до внесения изменений в дизайнерский проект | AI30: Разработка сметной документации, включая экспертизу | AJ30: ед. | AK30: 3 | AL30: 1 | AM30: Не выполнено | AN30: Муниципальный контракт приостановлен до внесения изменений в дизайнерский проект
A31: 1.5.2.2. | B31: Выполнение работ по разработке проктно-сметной документации дворовых территорий Хостинского внутригородского района (разработка сметной документации) | C31: Департамент строительства администрации города Сочи, МКУ города Сочи «Управление капитального строительства» | D31: =E31+F31+G31+H31+I31 -> 1,456.8 | E31: 0.0 | F31: 0.0 | G31: 1,456.8 | H31: 0.0 | I31: 0.0 | J31: =SUM(K31:O31) -> 1,456.8 | K31: 0.0 | L31: 0.0 | M31: 0.0 | N31: 0.0 | O31: 1,456.8 | P31: 0.0 | Q31: 0.0 | R31: =S31+T31+U31+V31+W31+X31+Y31 -> 1,456.8 | S31: 0.0 | T31: 0.0 | U31: 0.0 | V31: 0.0 | W31: 1,456.8 | X31: 0.0 | Y31: 0.0 | Z31: =AA31+AB31+AC31+AD31+AE31+AF31+AG31 -> 1,456.8 | AA31: 0.0 | AB31: 0.0 | AC31: 0.0 | AD31: 0.0 | AE31: 1,456.8 | AF31: 0.0 | AG31: 0.0 | AI31: Разработка сметной документации, включая экспертизу | AJ31: ед. | AK31: 3 | AL31: 3 | AM31: выполнено
A32: 1.5.2.3. | B32: Выполнение работ по разработке проктно-сметной документации дворовых территорий Адлерского внутригородского района (разработка сметной документации) | C32: Департамент строительства администрации города Сочи, МКУ города Сочи «Управление капитального строительства» | D32: 1,491.8 | E32: 0.0 | F32: 0.0 | G32: 1,491.8 | H32: =SUM(H33:H38) -> 0.0 | I32: =SUM(I33:I38) -> 0.0 | J32: 1,491.8 | K32: 0.0 | L32: 0.0 | M32: 0.0 | N32: 0.0 | O32: 1,491.8 | P32: 0.0 | Q32: 0.0 | R32: =S32+T32+U32+V32+W32+X32+Y32 -> 1,491.8 | S32: 0.0 | T32: 0.0 | U32: 0.0 | V32: 0.0 | W32: 1,491.8 | X32: 0.0 | Y32: 0.0 | Z32: =AA32+AB32+AC32+AD32+AE32+AF32+AG32 -> 1,491.8 | AA32: 0.0 | AB32: 0.0 | AC32: 0.0 | AD32: 0.0 | AE32: 1,491.8 | AF32: 0.0 | AG32: 0.0 | AI32: Разработка сметной документации, включая экспертизу | AJ32: ед | AK32: 3 | AL32: 3 | AM32: выполнено | AP32: 128072.7
A33: 1.5.2.4 | B33: Выполнение работ по разработке проктно-сметной документации дворовых территорий Лазаревского внутригородского района (разработка сметной документации) | C33: Департамент строительства администрации города Сочи, МКУ города Сочи «Управление капитального строительства» | D33: 1,459.2 | E33: 0.0 | F33: 0.0 | G33: 1,459.2 | H33: 0.0 | I33: 0.0 | J33: 1,459.2 | K33: 0.0 | L33: 0.0 | M33: 0.0 | N33: 0.0 | O33: 1,459.2 | P33: 0.0 | Q33: 0.0 | R33: =+T33+U33+V33+W33+X33+Y33 -> 447.5 | S33: 0.0 | T33: 0.0 | U33: 0.0 | V33: 0.0 | W33: 447.5 | X33: 0.0 | Y33: 0.0 | Z33: =AA33+AB33+AC33+AD33+AE33+AF33+AG33 -> 447.5 | AA33: 0.0 | AB33: 0.0 | AC33: 0.0 | AD33: 0.0 | AE33: 447.5 | AF33: 0.0 | AG33: 0.0 | AH33: Неосвоение в сумме 1011,7 тыс. рублей - муниципальный контракт приостановлен до внесения изменений в дизайнерский проект | AI33: Разработка сметной документации, включая экспертизу | AJ33: ед | AK33: 3 | AL33: 1 | AM33: Не выполнено | AN33: Муниципальный контракт приостановлен до внесения изменений в дизайнерский проект | AP33: 922.9
A34: 2. | B34: Основное мероприятие «Выполнение работ по благоустройству общественных территорий» | C34: Департамент строительства администрации города Сочи, МКУ города Сочи «Управление капитального строительства» | D34: =D37 -> 104,162.5 | E34: =E37 -> 83,388.1 | F34: 3,474.6 | G34: 17,299.8 | H34: 0.0 | I34: 0.0 | J34: 104,162.5 | K34: 83,388.1 | L34: 0.0 | M34: 3,474.6 | N34: 0.0 | O34: 17,299.8 | P34: 0.0 | Q34: 0.0 | R34: 1,281.2 | S34: 0.0 | T34: 0.0 | U34: 0.0 | V34: 0.0 | W34: 1,281.2 | X34: 0.0 | Y34: 0.0 | Z34: 1,281.2 | AA34: 0.0 | AB34: 0.0 | AC34: 0.0 | AD34: 0.0 | AE34: 1,281.2 | AF34: 0.0 | AG34: 0.0
AH35: Реализация мероприятия запланирована на 3-4 квартал 2018 года. | AI35: 1 единица, проектно – изыскательские работы – 1 проект, экспертиза – 1 проект. | AJ35: ед. | AK35: 3 | AL35: 0 | AM35: не выполнено | AN35: Кассовое исполнение 3-4 квартал 2018 года.
A36: 1.1.22 | B36: Строительство дошкольного учреждения в пос.Макопсе Лазаревского района (проектно-изыскательские работы, строительство) | C36: муниципальное казенное учреждение города Сочи "Управление капитального строительства" | D36: 0.0 | J36: =K36+L36+M36+N36+O36 -> 0.0 | P36: 199.9 | R36: =SUM(S36:Y36) -> 0.0 | X36: 0.0 | Z36: =SUM(AA36:AG36) -> 0.0 | AF36: 0.0 | AH36: Реализация мероприятия запланирована на 3-4 квартал 2018 года. | AI36: Детализированный перечень работ указан в приложении №7 к муниципальной программе. | AJ36: ед. | AK36: 3 | AL36: 0 | AM36: не выполнено | AN36: Кассовое исполнение 3-4 квартал 2018 года.
A37: 2.5 | B37: Выполнение работ по благоустройству общественных территорий, в том числе разработка проектно-сметной документации - всего | C37: Департамент строительства администрации города Сочи, МКУ города Сочи «Управление капитального строительства» | D37: =D38+D43 -> 104,162.5 | E37: 83,388.1 | F37: 3,474.6 | G37: 17,299.8 | H37: 0.0 | I37: 0.0 | J37: 104,162.5 | K37: 83,388.1 | L37: 0.0 | M37: 3,474.6 | N37: 0.0 | O37: 17,299.8 | P37: 0.0 | Q37: 0.0 | R37: 1,281.2 | S37: 0.0 | T37: 0.0 | U37: 0.0 | V37: 0.0 | W37: 1,281.2 | X37: 0.0 | Y37: 0.0 | Z37: =SUM(AA37:AG37) -> 1,281.2 | AA37: 0.0 | AB37: 0.0 | AC37: 0.0 | AD37: 0.0 | AE37: =AE38+AE43 -> 1,281.2 | AF37: 0.0 | AG37: 0.0
A38: 2.5.1. | B38: Выполнение работ по благоустройству общественных территорий - всего | C38: Департамент строительства администрации города Сочи, МКУ города Сочи «Управление капитального строительства» | D38: =D39+D40+D41+D42 -> 99,843.2 | E38: =E39+E40+E41+E42 -> 83,388.1 | F38: =F39+F40+F41+F42 -> 3,474.6 | G38: =G39+G40+G41+G42 -> 12,980.5 | H38: =H39+H40+H41+H42 -> 0.0 | I38: 0.0 | J38: =J39+J40+J41+J42 -> 99,843.2 | K38: 83,388.1 | L38: 0.0 | M38: 3,474.6 | N38: 0.0 | O38: 12,980.5 | P38: 0.0 | Q38: 0.0 | R38: =SUM(S38:Y38) -> 0.0 | S38: 0.0 | T38: =T39+T40+T41+T42 -> 0.0 | U38: 0.0 | V38: 0.0 | W38: 0.0 | X38: 0.0 | Y38: =Y39+Y40+Y41+Y42+Y43 -> 0.0 | Z38: =SUM(AA38:AG38) -> 0.0 | AA38: 0.0 | AB38: 0.0 | AC38: 0.0 | AD38: 0.0 | AE38: 0.0 | AF38: 0.0 | AG38: 0.0
A39: 2.5.1.1 | B39: Выполнение работ по благоустройству общественных территорий Центрального внутригородского района | C39: Департамент строительства администрации города Сочи, МКУ города Сочи «Управление капитального строительства» | D39: =E39+F39+G39+H39+I39 -> 4,319.9 | E39: 3,607.9 | F39: 150.4 | G39: 561.6 | H39: 0.0 | I39: 0.0 | J39: =+SUM(K39:O39) -> 4,319.9 | K39: 3,607.9 | L39: 0.0 | M39: 150.4 | N39: 0.0 | O39: 561.6 | P39: 0.0 | Q39: 0.0 | R39: =S39+T39+U39+V39+W39++Y39+X39 -> 0.0 | S39: 0.0 | T39: 0.0 | U39: 0.0 | V39: 0.0 | W39: 0.0 | X39: 0.0 | Y39: 0.0 | Z39: =SUM(AA39:AG39) -> 0.0 | AA39: 0.0 | AB39: 0.0 | AC39: 0.0 | AD39: 0.0 | AE39: 0.0 | AF39: 0.0 | AG39: 0.0 | AH39: Оплата ро мероприятию запланирована во 2 полугодии 2019 года | AI39: благоустройство общественных территорий | AJ39: ед. | AK39: 1 | AL39: 0 | AM39: не выполнено | AN39: Выполнение работ в 3 квартале 2019 года
A40: 2.5.1.2 | B40: Выполнение работ по благоустройству общественных территорий Хостинского внутригородского района | C40: Департамент строительства администрации города Сочи, МКУ города Сочи «Управление капитального строительства» | D40: =E40+F40+G40+H40+I40 -> 71,707.2 | E40: 59,889.8 | F40: 2,495.4 | G40: 9,322.0 | H40: 0.0 | I40: 0.0 | J40: =K40+L40+M40+N40+O40+P40+Q40 -> 71,707.2 | K40: 59,889.8 | L40: 0.0 | M40: 2,495.4 | N40: 0.0 | O40: 9,322.0 | P40: 0.0 | Q40: 0.0 | R40: =S40+T40+U40+V40+W40+X40+Y40 -> 0.0 | S40: 0.0 | T40: 0.0 | U40: 0.0 | V40: 0.0 | W40: 0.0 | X40: 0.0 | Y40: 0.0 | Z40: =AA40+AB40+AC40+AD40+AE40+AF40+AG40 -> 0.0 | AA40: 0.0 | AB40: 0.0 | AC40: 0.0 | AD40: 0.0 | AE40: 0.0 | AF40: 0.0 | AG40: 0.0 | AH40: Оплата ро мероприятию запланирована во 2 полугодии 2019 года | AI40: благоустройство общественных территорий | AJ40: ед. | AK40: 1 | AL40: 0 | AM40: не выполнено | AN40: Выполнение работ в 3 квартале 2019 года
A41: 2.5.1.3 | B41: Выполнение работ по благоустройству общественных территорий Адлерского внутригородского района | C41: Департамент строительства администрации города Сочи, МКУ города Сочи «Управление капитального строительства» | D41: =E41+F41+G41+H41+I41 -> 11,432.5 | E41: 9,547.7 | F41: 397.8 | G41: 1,487.0 | H41: 0.0 | I41: 0.0 | J41: =K41+L41+M41+N41+O41+P41+Q41 -> 11,432.5 | K41: 9,547.7 | L41: 0.0 | M41: 397.8 | N41: 0.0 | O41: 1,487.0 | P41: 0.0 | Q41: 0.0 | R41: =S41+T41+U41+V41+W41+X41+Y41 -> 0.0 | S41: 0.0 | T41: 0.0 | U41: 0.0 | V41: 0.0 | W41: 0.0 | X41: 0.0 | Y41: 0.0 | Z41: =SUM(AA41:AG41) -> 0.0 | AA41: 0.0 | AB41: 0.0 | AC41: 0.0 | AD41: 0.0 | AE41: 0.0 | AF41: 0.0 | AG41: 0.0 | AH41: Оплата ро мероприятию запланирована во 2 полугодии 2019 года | AI41: благоустройство общественных территорий | AJ41: ед. | AK41: 1 | AL41: 0 | AM41: не выполнено | AN41: Выполнение работ в 3 квартале 2019 года
A42: 2.5.1.4 | B42: Выполнение работ по благоустройству общественных территорий Лазаревского внутригородского района | C42: Департамент строительства администрации города Сочи, МКУ города Сочи «Управление капитального строительства» | D42: =E42+F42+G42+H42+I42 -> 12,383.6 | E42: 10,342.7 | F42: 431.0 | G42: 1,609.9 | H42: 0.0 | I42: 0.0 | J42: =K42+L42+M42+N42+O42+P42+Q42 -> 12,383.6 | K42: 10,342.7 | L42: 0.0 | M42: 431.0 | N42: 0.0 | O42: 1,609.9 | P42: 0.0 | Q42: 0.0 | R42: 0.0 | S42: 0.0 | T42: 0.0 | U42: 0.0 | V42: 0.0 | W42: 0.0 | X42: =X43+X44+X45+X46 -> 0.0 | Y42: =Y43+Y44+Y45+Y46 -> 0.0 | Z42: =AA42+AB42+AC42+AD42+AE42+AF42+AG42 -> 0.0 | AA42: 0.0 | AB42: 0.0 | AC42: 0.0 | AD42: 0.0 | AE42: 0.0 | AF42: =AF43+AF44+AF45+AF46 -> 0.0 | AG42: =AG43+AG44+AG45+AG46 -> 0.0 | AH42: Оплата ро мероприятию запланирована во 2 полугодии 2019 года | AI42: благоустройство общественных территорий | AJ42: ед. | AK42: 1 | AL42: 0 | AM42: не выполнено | AN42: Выполнение работ в 3 квартале 2019 года
A43: 2.5.2. | B43: Выполнение работ по разработке проектно-сметной документации общественных территорий - всего | C43: Департамент строительства администрации города Сочи, МКУ города Сочи «Управление капитального строительства» | D43: =+F43+G43+H43+I43 -> 4,319.3 | E43: =E44+E45+E46+E47 -> 0.0 | F43: =F44+F45+F46+F47 -> 0.0 | G43: =G44+G45+G46+G47 -> 4,319.3 | H43: =H44+H45+H46+H47 -> 0.0 | I43: =I44+I45+I46+I47 -> 0.0 | J43: =K43+L43+M43+N43+O43+P43+Q43 -> 4,319.3 | K43: =K44+K45+K46+K47 -> 0.0 | L43: 0.0 | M43: 0.0 | N43: 0.0 | O43: =O44+O45+O46+O47 -> 4,319.3 | P43: =P44+P45+P46+P47 -> 0.0 | Q43: 0.0 | R43: 1,281.2 | S43: =S44+S45+S46+S47 -> 0.0 | T43: 0.0 | U43: 0.0 | V43: 0.0 | W43: =W44+W45+W46+W47 -> 1,281.2 | X43: 0.0 | Y43: 0.0 | Z43: 1,281.2 | AA43: =AA44+AA45+AA46+AA47 -> 0.0 | AB43: 0.0 | AC43: 0.0 | AD43: 0.0 | AE43: 1,281.2 | AF43: =AF44+AF45+AF46+AF47 -> 0.0 | AG43: =AG44+AG45+AG46+AG47 -> 0.0 | AI43: разработка сметной документации, включая экспертизу | AJ43: ед. | AK43: 1 | AL43: 1
A44: 2.5.2.1 | B44: Выполнение работ по благоустройству общественных территорий Центрального внутригородского района (разработка сметной документации) | C44: Департамент строительства администрации города Сочи, МКУ города Сочи «Управление капитального строительства» | D44: =+F44+G44+H44+I44 -> 1,541.5 | E44: =E45+E46+E47+E48 -> 0.0 | F44: 0.0 | G44: 1,541.5 | H44: 0.0 | I44: 0.0 | J44: =+L44+M44+N44+O44+P44+Q44 -> 1,541.5 | K44: 0.0 | L44: 0.0 | M44: 0.0 | N44: 0.0 | O44: 1,541.5 | P44: 0.0 | Q44: 0.0 | R44: 322.0 | S44: 0.0 | T44: 0.0 | U44: 0.0 | V44: 0.0 | W44: 322.0 | X44: 0.0 | Y44: 0.0 | Z44: 322.0 | AA44: 0.0 | AB44: 0.0 | AC44: 0.0 | AD44: 0.0 | AE44: 322.0 | AF44: 0.0 | AG44: 0.0 | AH44: Неосвоение всумме 1219,5 тыс. рублей - муниципальный контракт приостановлен до внесения изменений в дизайнерский проект | AI44: разработка сметной документации, включая экспертизу | AJ44: ед. | AK44: 1 | AL44: 1 | AM44: выполнено | AN44: Неосвоение всумме 1219,5 тыс. рублей - муниципальный контракт приостановлен до внесения изменений в дизайнерский проект
A45: 2.5.2.2 | B45: Выполнение работ по благоустройству общественных территорий Хостинского внутригородского района (разработка сметной документации) | C45: Департамент строительства администрации города Сочи, МКУ города Сочи «Управление капитального строительства» | D45: 1,818.6 | E45: 0.0 | F45: 0.0 | G45: 1,818.6 | H45: 0.0 | I45: 0.0 | J45: 1,818.6 | K45: 0.0 | L45: 0.0 | M45: 0.0 | N45: 0.0 | O45: 1,818.6 | P45: 0.0 | Q45: 0.0 | R45: 0.0 | S45: 0.0 | T45: 0.0 | U45: 0.0 | V45: 0.0 | W45: 0.0 | X45: 0.0 | Y45: 0.0 | Z45: 0.0 | AA45: 0.0 | AB45: 0.0 | AC45: 0.0 | AD45: 0.0 | AE45: 0.0 | AF45: 0.0 | AG45: 0.0 | AH45: Неосвоение в сумме 1 818,6 тыс. рублей - муниципальный контракт приостановлен до внесения изменений в дизайнерский проект | AI45: разработка сметной документации, включая экспертизу | AJ45: ед. | AK45: 1 | AL45: 0 | AM45: Не выполнено | AN45: Неосвоение в сумме 1 818,6 тыс. рублей - муниципальный контракт приостановлен до внесения изменений в дизайнерский проект
A46: 2.5.2.3 | B46: Выполнение работ по благоустройству общественных территорий Адлерского внутригородского района (разработка сметной документации) | C46: Департамент строительства администрации города Сочи, МКУ города Сочи «Управление капитального строительства» | D46: 561.2 | E46: 0.0 | F46: 0.0 | G46: 561.2 | H46: 0.0 | I46: 0.0 | J46: 561.2 | K46: 0.0 | L46: 0.0 | M46: 0.0 | N46: 0.0 | O46: 561.2 | P46: 0.0 | Q46: 0.0 | R46: 561.2 | S46: 0.0 | T46: 0.0 | U46: 0.0 | V46: 0.0 | W46: 561.2 | X46: 0.0 | Y46: 0.0 | Z46: 561.2 | AA46: 0.0 | AB46: 0.0 | AC46: 0.0 | AD46: 0.0 | AE46: 561.2 | AF46: 0.0 | AG46: 0.0 | AI46: разработка сметной документации, включая экспертизу | AJ46: ед. | AK46: 1 | AL46: 1 | AM46: выполнено
A47: 2.5.2.4 | B47: Выполнение работ по благоустройству общественных территорий Лазаревского внутригородского района (разработка сметной документации) | C47: Департамент строительства администрации города Сочи, МКУ города Сочи «Управление капитального строительства» | D47: 398.0 | E47: 0.0 | F47: 0.0 | G47: 398.0 | H47: 0.0 | I47: 0.0 | J47: 398.0 | K47: 0.0 | L47: 0.0 | M47: 0.0 | N47: 0.0 | O47: 398.0 | P47: 0.0 | Q47: 0.0 | R47: 398.0 | S47: 0.0 | T47: 0.0 | U47: 0.0 | V47: 0.0 | W47: 398.0 | X47: 0.0 | Y47: 0.0 | Z47: 398.0 | AA47: 0.0 | AB47: 0.0 | AC47: 0.0 | AD47: 0.0 | AE47: 398.0 | AF47: 0.0 | AG47: 0.0 | AI47: разработка сметной документации, включая экспертизу | AJ47: ед. | AK47: 1 | AL47: 1 | AM47: выполнено
B51: Директор департамента городского хозяйства администрации города Сочи | O51: А.С. Мамлай

Sheet Показатели, критерии
G1: Приложение 2
A3: ОТЧЕТ
A4: о достижении целевых показателей муниципальной программы города Сочи
A5: "Формирование современной городской среды"
C6: наименование муниципальной программы
A7: _____________________________за 1 полугодие 2018 года______________________________
A10: № номер показателя1) | B10: Наименование целевого показателя | C10: Единица измерения | D10: Значение целевого показателя за: | G10: Причины недостижения целевых показателей в отчетном периоде3)
D11: аналогичный отчетный период (факт) | E11: текущий отчетный период
E12: план | F12: факт 2)
A13: 1 | B13: 2 | C13: 3 | D13: 4 | E13: 5 | F13: 6 | G13: 7
B14: Муниципальная программа «Формирование современной городской среды»
A15: 1 | B15: Доля благоустроенных дворовых территорий | C15: % | D15: -- | E15: 42.5 | F15: 41.4 | G15: рассчитывается по итогам 2019 года
A16: 2 | B16: Доля отремонтированных (реконструированных) дворовых проездов | C16: % | D16: -- | E16: 52.2 | F16: 51.2 | G16: рассчитывается по итогам 2019 года
A17: 3 | B17: Площадь отремонтированных (реконструированных) дворовых проездов | C17: м² | D17: -- | E17: 3838.0 | F17: 3838.0
A18: 4 | B18: Доля благоустроенных территорий общего пользования | C18: % | D18: -- | E18: 55.5 | F18: 55.5
A19: 5 | B19: Площадь благоустроенных территорий общего пользования | C19: м² | D19: -- | E19: 11000.0 | F19: 11000.0
A20: 6 | B20: Количество установленных (отремонтированных) детских площадок | C20: шт | D20: -- | E20: 10 | F20: 10
A21: 7 | B21: Количество благоустроенных дворовых территорий | C21: шт | D21: -- | E21: 12 | F21: 12
A22: 8 | B22: Количество благоустроенных территорий общего пользования | C22: шт | D22: -- | E22: 4 | F22: 4
A23: Директор департамента городского хозяйства | C23: ___________________ | F23: А.С. Мамлай
A24: администрации города Сочи
A25: Исполнитель Е.В. Соколова, тел.264-89-62

Sheet План реализации
A1: Согласовано: | D1: Согласовано: | H1: Утверждено:
A2: И.о. директора департамента строительства | D2: Глава Хостинского внутригородского | H2: И.о. заместителя Главы города Сочи
A3: администрации города Сочи | D3: района города Сочи
A5: _________________ П.А. Терехов | D5: _________________ П.П. Клопотовский | H5: _________________ А.С. Мамлай
A7: "___"______________ 2019 г. | D7: "___"______________ 2019 г. | H7: "___"______________ 2019 г.
D9: Согласовано:
E11: ПЛАН
A12: РЕАЛИЗАЦИИ МУНИЦИПАЛЬНОЙ ПРОГРАММЫ ГОРОДА СОЧИ
A13: "ФОРМИРОВАНИЕ СОВРЕМЕННОЙ ГОРОДСКОЙ СРЕДЫ"
A14: на 1 сентября 2019 год
A16: Номер основного мероприятия, контрольного события, мероприятия<1> | C16: Наименование подпрограммы, отдельного мероприятия, ведомственной целевой программы, контрольного события | D16: Статус <2> | E16: Ответственный за реализацию мероприятия, выполнение контрольного события<3> | F16: Срок реализации мероприятия, дата контрольного события <4> | G16: Код класификации росходов бюджета | H16: Поквартальное распределение прогноза кассовых выплат из бюджета города Сочи, тыс. рублей
H17: I | J17: II | L17: III | N17: IV
A19: 1 | C19: 2 | D19: 3 | E19: 4 | F19: 5 | G19: 6 | H19: 7 | I19: 10 | J19: 8 | K19: 12 | L19: 9 | M19: 14 | N19: 10 | O19: 16
B20: Задача 1.1. Обеспечение формирования единых ключевых подходов и приоритетов формирования комфортной городской среды на территории муниципального образования города-курорт Сочи
B21: 1.5. | C21: Основное мероприятие «Выполнение работ по благоустройству дворовых территорий, в тм числе разработка проектно-сметной документации-всего» | G21: x | H21: =H22+H35 -> 6,500.0 | I21: =I22+I35 -> 0.0 | J21: 2,000.0 | K21: 4,256.2 | L21: 2,800.2 | M21: 0.0 | N21: 1,400.0 | O21: 0.0
A22: 1.1 | B22: 1.5.1 | C22: Выполнение работ по благоустройству дворовых территорий - всего | D22: 3 | E22: Департамент строительства администрации города Сочи, МКУ города Сочи «Управление капитального строительства» | F22: 01.01.2019-29.12.2019 | G22: x | H22: =SUM(H23:H33) -> 2,599.8 | I22: =SUM(I23:I33) -> 0.0 | J22: 0.0 | K22: 0.0 | L22: 2,800.2 | M22: 0.0 | N22: 1,400.0 | O22: 0.0
B23: 1.5.1.1. | C23: Выполнение работ по благоустройству дворовых территорий Центрального внутригородского района | F23: 01.01.2019-29.12.2019 | G23: 992 0503 30101L5550 244 225 | H23: 799.8 | I23: 0,0 | J23: 0.0 | K23: 0.0 | L23: 700.0 | M23: 0.0 | N23: 200.2 | O23: 0.0
B24: 1.5.1.1.1. | C24: Заключение муниципального контракта | F24: 01.01.2019-29.12.2019 | G24: x | H24: x | I24: x | J24: x | K24: x | L24: x | M24: x | N24: x | O24: x
B25: 1.5.1.1.2. | C25: Принятие и оплата работ | F25: 01.01.2019-29.12.2019 | G25: x | H25: x | I25: x | J25: x | K25: x | L25: x | M25: x | N25: x | O25: x
A26: 1.2 | B26: 1.5.1.2. | C26: Выполнение работ по благоустройству дворовых территорий Хостинского внутригородского района | D26: 3 | E26: Департамент строительства администрации города Сочи, МКУ города Сочи «Управление капитального строительства» | F26: 01.01.2019-29.12.2019 | G26: 992 0503 30101L5550 244 225 | H26: 600.0 | I26: 0.0 | J26: 0.0 | K26: 0.0 | L26: 700.0 | M26: 0.0 | N26: 400.0 | O26: 0.0
B27: 1.5.1.2.1 | C27: Заключение муниципального контракта | F27: 01.01.2019-29.12.2019 | G27: x | H27: x | I27: x | J27: x | K27: x | L27: x | M27: x | N27: x | O27: x
B28: 1.5.1.2.2. | C28: Принятие и оплата работ | F28: 01.01.2019-29.12.2019 | G28: x | H28: x | I28: x | J28: x | K28: x | L28: x | M28: x | N28: x | O28: x
A29: 1.3 | B29: 1.5.1.3. | C29: Выполнение работ по благоустройству дворовых территорий Адлерского внутригородского района | D29: 3 | E29: Департамент строительства администрации города Сочи, МКУ города Сочи «Управление капитального строительства» | F29: 01.01.2019-29.12.2019 | G29: 992 0503 30101L5550 244 225 | H29: 600.0 | I29: 0.0 | J29: 0.0 | K29: 0.0 | L29: 700.0 | M29: 0.0 | N29: 400.0 | O29: 0.0
B30: 1.5.1.3.1 | C30: Заключение муниципального контракта | F30: 01.01.2019-29.12.2019 | G30: x | H30: x | I30: x | J30: x | K30: x | L30: x | M30: x | N30: x | O30: x
B31: 1.5.1.3.2 | C31: Принятие и оплата работ | F31: 01.01.2019-29.12.2019 | G31: x | H31: x | I31: x | J31: x | K31: x | L31: x | M31: x | N31: x | O31: x
A32: 1.4 | B32: 1.5.1.4. | C32: Выполнение работ по благоустройству дворовых территорий Лазаревского внутригородского района | D32: 3 | E32: Департамент строительства администрации города Сочи, МКУ города Сочи «Управление капитального строительства» | F32: 01.01.2019-29.12.2019 | G32: 992 0503 30101L5550 244 225 | H32: 600.0 | I32: 0.0 | J32: 0.0 | K32: 0.0 | L32: 700.2 | M32: 0.0 | N32: 399.8 | O32: 0.0
B33: 1.5.1.4.1 | C33: Заключение муниципального контракта | F33: 01.01.2019-29.12.2019 | G33: x | H33: x | I33: x | J33: x | K33: x | L33: x | M33: x | N33: x | O33: x
B34: 1.5.1.4.2 | C34: Принятие и оплата работ | F34: 01.01.2019-29.12.2019 | G34: x | H34: x | I34: x | J34: x | K34: x | L34: x | M34: x | N34: x | O34: x
B35: 1.5.2. | C35: Выполнение работ по разработке проектно-сметной документации дворовых территорий-всего | E35: Департамент строительства администрации города Сочи, МКУ города Сочи «Управление капитального строительства» | F35: 01.01.2019-29.12.2019 | G35: x | H35: =H36+H39+H42+H45 -> 3900.20 | I35: =I36+I39+I42+I45 -> 0.00 | J35: 2000.00 | K35: 4256.20 | L35: 0.00 | M35: 0.00 | N35: 0.00 | O35: 0.00
B36: 1.5.2.1. | C36: Выполнение работ по разработке проктно-сметной документации дворовых территорий Центрального внутригородского района (разработка сметной документации) | F36: 01.01.2019-29.12.2019 | G36: 992 0503 30101M5550 244 226 | H36: 600,2 | J36: 892.2 | K36: 860,1
B37: 1.5.2.1.1 | C37: Заключение дс77-П-2 от 12.03.19 к мк 77-П от 05.12.2018 с ООО "НИАСТРОЙ-ЮГ" на сумму -1492,4тыс. руб. | F37: 01.01.2019-29.12.2019 | G37: x | H37: x | I37: x | J37: x | K37: x | L37: x | M37: x | N37: x | O37: x
B38: 1.5.2.1.2 | C38: Принятие и оплата работ | F38: 01.01.2019-29.12.2019 | G38: x | H38: x | I38: x | J38: x | K38: x | L38: x | M38: x | N38: x | O38: x
B39: 1.5.2.2. | C39: Выполнение работ по разработке проктно-сметной документации дворовых территорий Хостинского внутригородского района (разработка сметной документации) | F39: 01.01.2019-29.12.2019 | G39: 992 0503 30101M5550 244 226 | H39: 1000 | J39: 456,8 | K39: 1456,8
B40: 1.5.2.2.1 | C40: Заключение дс77-П-2 от 12.03.19 к мк 77-П от 05.12.2018 с ООО "НИАСТРОЙ-ЮГ" на сумму -1456,8тыс. руб. | F40: 01.01.2019-29.12.2019 | G40: x | H40: x | I40: x | J40: x | K40: x | L40: x | M40: x | N40: x | O40: x
B41: 1.5.2.2.2 | C41: Принятие и оплата работ | F41: 01.01.2019-29.12.2019 | G41: x | H41: x | I41: x | J41: x | K41: x | L41: x | M41: x | N41: x | O41: x
B42: 1.5.2.3. | C42: Выполнение работ по разработке проктно-сметной документации дворовых территорий Адлерского внутригородского района (разработка сметной документации) | F42: 01.01.2019-29.12.2019 | G42: 992 0503 30101M5550 244 226 | H42: 1000 | J42: 491,8 | K42: 1491,8
B43: 1.5.2.3.1 | C43: Заключение дс77-П-2 от 12.03.19 к мк 77-П от 05.12.2018 с ООО "НИАСТРОЙ-ЮГ" на сумму -1491,8тыс. руб. | F43: 01.01.2019-29.12.2019 | G43: x | H43: x | I43: x | J43: x | K43: x | L43: x | M43: x | N43: x | O43: x
B44: 1.5.2.3.2 | C44: Принятие и оплата работ | F44: 01.01.2019-29.12.2019 | G44: x | H44: x | I44: x | J44: x | K44: x | L44: x | M44: x | N44: x | O44: x
A45: 2. | B45: 1.5.2.4 | C45: Выполнение работ по разработке проктно-сметной документации дворовых территорий Лазаревского внутригородского района (разработка сметной документации) | F45: 01.01.2019-29.12.2019 | G45: 992 0503 30101M5550 244 226 | H45: 1300 | J45: 159.2 | K45: 447.5 | M45: =SUM(M46:M58) -> 0.0 | O45: =SUM(O46:O58) -> 0.0
A46: 2.1 | B46: 1.5.2.4.1 | C46: Заключение дс77-П-2 от 12.03.19 к мк 77-П от 05.12.2018 с ООО "НИАСТРОЙ-ЮГ" на сумму -1459,2тыс. руб. | D46: 3 | E46: Департамент строительства администрации города Сочи, МКУ города Сочи «Управление капитального строительства» | F46: 01.01.2019-29.12.2019 | G46: x | H46: x | I46: x | J46: Х | K46: Х | O46: x
B47: 1.5.2.4.2 | C47: Принятие и оплата работ | F47: 01.01.2019-29.12.2019 | G47: x | H47: x | I47: x | J47: x | K47: x | L47: x | M47: x | N47: x | O47: x
A48: 2.2 | B48: 2. | C48: Основное мероприятие «Выполнение работ по благоустройству общественных территорий» | D48: 3 | E48: Департамент строительства администрации города Сочи, МКУ города Сочи «Управление капитального строительства» | F48: 01.01.2019-29.12.2019 | G48: x
B49: 2.5 | C49: Выполнение работ по благоустройству общественных территорий, в том числе разработка проектно-сметной документации - всего | F49: 01.01.2019-29.12.2019 | G49: x | H49: =H50+H64 -> 7700.0 | I49: =I50+I64 -> 0.0 | J49: 90062.7 | K49: 1281.2 | L49: 2499.8 | M49: 0.0 | N49: 3900.0 | O49: 0.0
B50: 2.5.1. | C50: Выполнение работ по благоустройству общественных территорий - всего | F50: 01.01.2019-29.12.2019 | G50: x | H50: =H51+H54+H58+H61 -> 4822.9 | I50: =I51+I54+I58+I61 -> 0.0 | J50: =J51+J54+J58+J61 -> 88620.5 | K50: 0.0 | L50: 2499.8 | M50: 0.0 | N50: 3900.0 | O50: 0.0
B51: 2.5.1.1 | C51: Выполнение работ по благоустройству общественных территорий Центрального внутригородского района | F51: 01.01.2019-29.12.2019 | G51: 992 0503 30101L5550 244 225 | H51: 600 | I51: 0 | J51: 3519,9 | K51: 0 | L51: 200
B52: 2.5.1.1.1 | C52: Заключение муниципального контракта | F52: 01.01.2019-29.12.2019 | G52: x | H52: x | I52: x | J52: x | K52: 0 | L52: x | M52: x | N52: x | O52: x
B53: 2.5.1.1.2 | C53: Принятие и оплата работ | F53: 01.01.2019-29.12.2019 | G53: x | H53: x | I53: x | J53: x | K53: x | L53: x | M53: x | N53: x | O53: x
A54: 2.3 | B54: 2.5.1.2 | C54: Выполнение работ по благоустройству общественных территорий Хостинского внутригородского района | D54: 3 | E54: Департамент строительства администрации города Сочи, МКУ города Сочи «Управление капитального строительства» | F54: 01.01.2019-29.12.2019 | G54: 992 0503 30101L5550 244 225 | H54: 1200 | I54: 0 | J54: 70307,2 | K54: 0.0 | L54: 200.0
B55: 2.5.1.2.1 | C55: Заключен муниципальный контракт№ 15 от 07.06.2019 с ООО "Ниастрой-Юг" на сумму 55 952,8 | F55: 01.01.2019-29.12.2019 | G55: x | H55: x | I55: x | J55: x | K55: x | L55: x | M55: x | N55: x | O55: x
B56: 2.5.1.2.2 | C56: Заключен муниципальный контракт№ 15 от 07.06.2019 с ООО "Логистик Групп" на сумму 14966,6 | F56: 01.01.2019-29.12.2019
B57: 2.5.1.2.3 | C57: Принятие и оплата работ | F57: 01.01.2019-29.12.2019 | G57: x | H57: x | I57: x | J57: x | K57: x | L57: x | M57: x | N57: x | O57: x
A58: 2.4 | B58: 2.5.1.3 | C58: Выполнение работ по благоустройству общественных территорий Адлерского внутригородского района | D58: 3 | E58: Департамент строительства администрации города Сочи, МКУ города Сочи «Управление капитального строительства» | F58: 01.01.2019-29.12.2019 | G58: 992 0503 30101L5550 244 225 | H58: 1822,9 | I58: 0 | J58: 6960,8 | K58: 0.0 | L58: 1,500.0 | N58: 1,148.8
B59: 2.5.1.3.1 | C59: Заключение муниципального контракта | F59: 01.01.2019-29.12.2019 | G59: x | H59: x | I59: x | J59: x | K59: x | L59: x | M59: x | N59: x | O59: x
B60: 2.5.1.3.2 | C60: Принятие и оплата работ | F60: 01.01.2019-29.12.2019 | G60: x | H60: x | I60: x | J60: x | K60: x | L60: x | M60: x | N60: x | O60: x
A61: 3.1 | B61: 2.5.1.4 | C61: Выполнение работ по благоустройству общественных территорий Лазаревского внутригородского района | D61: 3 | E61: Департамент строительства администрации города Сочи, МКУ города Сочи «Управление капитального строительства» | F61: 01.01.2019-29.12.2019 | G61: 992 0503 30101L5550 244 225 | H61: 1200 | I61: 0 | J61: 7832,6 | K61: 0.0 | L61: 599.8 | M61: 0 | N61: 2,751.2
B62: 2.5.1.4.1 | C62: Заключение муниципального контракта | F62: 01.01.2019-29.12.2019 | G62: x | H62: x | I62: x | J62: x | K62: x | L62: x | M62: x | N62: x | O62: x
B63: 2.5.1.4.2 | C63: Принятие и оплата работ | F63: 01.01.2019-29.12.2019 | G63: x | H63: x | I63: x | J63: x | K63: x | L63: x | M63: x | N63: x | O63: x
B64: 2.5.2. | C64: Выполнение работ по разработке проектно-сметной документации общественных территорий - всего | F64: 01.01.2019-29.12.2019 | G64: x | H64: =H65+H68+H71+H74 -> 2877.1 | I64: =I65+I68+I71+I74 -> 0.0 | J64: 1442.2 | K64: 1281.2 | L64: 0.0 | M64: 0.0 | N64: 0.0 | O64: 0.0
B65: 2.5.2.1 | C65: Выполнение работ по благоустройству общественных территорий Центрального внутригородского района (разработка сметной документации) | D65: 3 | E65: Департамент строительства администрации города Сочи, МКУ города Сочи «Управление капитального строительства» | F65: 01.01.2019-29.12.2019 | G65: 992 0503 30101M5550 244 226 | H65: 1219,5 | I65: 0 | J65: 322 | K65: 322
B66: 2.5.2.1.1 | C66: Заключение дс77-П-2 от 12.03.19 к мк 77-П от 05.12.2018 с ООО "НИАСТРОЙ-ЮГ" на сумму -322,0тыс. руб. | F66: 01.01.2019-29.12.2019 | G66: x | H66: x | I66: x | J66: x | K66: x | L66: x | M66: x | N66: x | O66: x
B67: 2.5.2.1.2 | C67: Принятие и оплата работ | F67: 01.01.2019-29.12.2019 | G67: x | H67: x | I67: x | J67: x | K67: x | L67: x | M67: x | N67: x | O67: x
B68: 2.5.2.2 | C68: Выполнение работ по благоустройству общественных территорий Хостинского внутригородского района (разработка сметной документации) | D68: 3 | E68: Департамент строительства администрации города Сочи, МКУ города Сочи «Управление капитального строительства» | F68: 01.01.2019-29.12.2019 | G68: 992 0503 30101M5550 244 226 | H68: 1257,6 | J68: 561,0 | K68: 0
B69: 2.5.2.2.1 | C69: Заключение дс77-П-2 от 12.03.19 к мк 77-П от 05.12.2018 с ООО "НИАСТРОЙ-ЮГ" на сумму -1818,60тыс. руб. | F69: 01.01.2019-29.12.2019 | G69: x | H69: x | I69: x | J69: x | K69: x | L69: x | M69: x | N69: x | O69: x
B70: 2.5.2.2.2 | C70: Принятие и оплата работ | F70: 01.01.2019-29.12.2019 | G70: x | H70: x | I70: x | J70: x | K70: x | L70: x | M70: x | N70: x | O70: x
A71: 3.2 | B71: 2.5.2.3 | C71: Выполнение работ по благоустройству общественных территорий Адлерского внутригородского района (разработка сметной документации) | D71: 3 | E71: Департамент строительства администрации города Сочи, МКУ города Сочи «Управление капитального строительства» | F71: 01.01.2019-29.12.2019 | G71: 992 0503 30101M5550 244 226 | H71: 300 | J71: 261,2 | K71: 561.2
B72: 2.5.2.3.1 | C72: Заключение дс77-П-2 от 12.03.19 к мк 77-П от 05.12.2018 с ООО "НИАСТРОЙ-ЮГ" на сумму -561,20тыс. руб. | F72: 01.01.2019-29.12.2019 | G72: x | H72: x | I72: x | J72: x | K72: x | L72: x | M72: x | N72: x | O72: x
B73: 2.5.2.3.2 | C73: Принятие и оплата работ | F73: 01.01.2019-29.12.2019 | G73: x | H73: x | I73: x | J73: x | K73: x | L73: x | M73: x | N73: x | O73: x
B74: 2.5.2.4 | C74: Выполнение работ по благоустройству общественных территорий Лазаревского внутригородского района (разработка сметной документации) | D74: 3 | E74: Департамент строительства администрации города Сочи -ответственный исполнитель мероприятия МКУ города Сочи "Управление капитального строительства"-заказчик | F74: 01.01.2019-29.12.2019 | G74: 992 0503 30101M5550 244 226 | H74: 100 | J74: 298 | K74: 398
A75: 3.3 | B75: 2.5.2.4.1 | C75: Заключение дс77-П-2 от 12.03.19 к мк 77-П от 05.12.2018 с ООО "НИАСТРОЙ-ЮГ" на сумму -398,0тыс. руб. | F75: 01.01.2019-29.12.2019 | G75: x | H75: x | I75: x | J75: x | K75: 0.0 | M75: x | O75: x
B76: 2.5.2.4.2 | C76: Принятие и оплата работ | F76: 01.01.2019-29.12.2019 | G76: x | H76: x | I76: x | J76: x | K76: x | L76: x | M76: x | N76: x | O76: x
C77: Итого по муниципальной программе | H77: =H21+H49 -> 14200.0 | I77: =I21+I49 -> 0.0 | J77: 92062.7 | K77: 5537.4 | L77: 5300.0 | M77: 0.0 | N77: 5300.0 | O77: 0.0
A81: Заместитель директора департамента городского хозяйства администрации города Сочи | J81: С.С. Попова
A84: Исп. Е.В. Соколова, 264-89-62

Sheet финансир
S1: Приложение 4
B3: ОТЧЕТ
B4: об объемах софинансирования бюджета города Сочи
B5: в рамках реализации государственной программы Краснодарского края
A6: «Формирование современной городской среды»
B7: (наименование государственной программы)
B9: (наименование подпрограммы государственной программы)
A10: Субсидии в целях софинансирования расходных обязательств муниципальных образований Краснодарского края, возникающих при реализации муниципальных программ, направленных на организацию благоустройства территорий городских округов, поселений, в том числе территорий соответствующего функционального назначения (площадей, набережных, улиц, пешеходных зон, скверов, парков, иных территорий), дворовых территорий
H12: (наименование субсидии, субвенции, иных межбюджетных трансфертов)
A13: 1 полугодие 2019 года
S16: тыс. рублей
A17: № п/п | B17: Наименование мероприятия | C17: Наименование муниципальной программы | D17: Объем финансирования на текущий год, предусмотренный соглашением | H17: Профинансировано в отчетном периоде | L17: Освоено в отчетном периоде | P17: Уполномо-ченный орган администрации Краснодар- ского края | Q17: Реквизиты соглашения с муниципальным образованием | R17: Причины неполного (отсутствия) финанси- рования 2) | S17: Причины неосвое- ния 3)
D18: Всего | E18: Федеральный бюджет | F18: Краевой бюджет | G18: Бюджет города Сочи 1) | H18: Всего | I18: Федеральный бюджет | J18: Краевой бюджет | K18: Бюджет города Сочи | L18: Всего | M18: Федеральный бюджет | N18: Краевой бюджет | O18: Бюджет города Сочи
A19: 1 | B19: 2 | C19: 3 | D19: 4 | E19: 5 | F19: 6 | G19: 7 | H19: 8 | I19: 9 | J19: 10 | K19: 11 | L19: 12 | M19: 13 | N19: 14 | O19: 15 | P19: 16 | Q19: 17 | R19: 18 | S19: 19
A20: 1 | B20: На реализацию муниципальных программ, направленных на организацию благоустройства территорий городских округов, поселений, в том числе территорий соответствующего функционального назначения (площадей, набережных, улиц, пешеходных зон, скверов, парков, иных территорий), дворовых территорий, за исключением мероприятий, указанных в п. 1.3.1 приложения № 1 к подпрограмме "Развитие благоустройства населенных пунктов Краснодарского края" государственной программы Краснодарского края "Развитие жилищно-коммунального хозяйства" | C20: "Формирование современной городской среды на территории муниципального образования город-курорт Сочи" | D20: =SUM(E20:G20) -> 116,862.7 | E20: 83,388.1 | F20: 3,474.6 | G20: 30,000.0 | H20: =SUM(I20:K20) -> 116,862.7 | I20: =E20 -> 83,388.1 | J20: =F20 -> 3,474.6 | K20: 30,000.0 | L20: =SUM(M20:O20) -> 0.0 | M20: 0.0 | N20: 0.0 | O20: 0.0 | P20: Министерство топливно-энергетического комплекса и жилищно-коммунального хозяйства Краснодарского края | Q20: Соглашение от 08.05.2019 № 03726000-1-2019-004 | S20: В соответствии с заключенными муниципальными контрактами приемка выполненных работ в 3 квартале 2019 года | V20: =H20-L20 -> 116,862.7
D21: =SUM(D20:D20) -> 116,862.7 | E21: =SUM(E20:E20) -> 83,388.1 | F21: 3,474.6 | G21: 30,000.0 | H21: 116,862.7 | I21: 83,388.1 | J21: 3,474.6 | K21: 30,000.0 | L21: 0.0 | M21: 0.0 | N21: 0.0 | O21: 0.0
B23: 1) Объем финансирования бюджета города Сочи указывается в соответствии с соглашением (дополнительным соглашением) о предоставлении субсидии из краевого бюджета, заключенным с муниципальным образованием.
B24: 2)Заполняется в случае, если значения графы «Профинансировано в отчетном периоде» (графы 7-10) меньше «Объем финансирования на текущий год, предусмотренный соглашением» (графы 3-6).
B25: 3)Заполняется в случае если, значения графы «Освоено в отчетном периоде» (графы 11-14) меньше «Профинансировано в отчетном периоде» (графы 7-10).
B26: Примечание. В форме не допускается исключать и добавлять графы и скрывать строки.
B28: Директор департамента городского хозяйства администрации города Сочи | N28: С.А. Сомко

Sheet результативн
H1: Приложение 5
A3: ОТЧЕТ
A4: о результативности предоставления субсидии бюджету города Сочи
A5: в рамках реализации государственной программы Краснодарского края
A6: «Формирование современной городской среды»
A7: (наименование государственной программы)
A8: "Развитие благоустройства населенных пунктов Краснодарского края"
A9: (наименование подпрограммы государственной программы)
A10: Субсидии в целях софинансирования расходных обязательств муниципальных образований Краснодарского края, возникающих при реализации муниципальных программ, направленных на организацию благоустройства территорий городских округов, поселений, том числе территорий соответствующего функционального назначения (площадей, набережных, улиц, пешеходных зон, скверов, парков, иных территорий), дворовых территорий
A12: (наименование субсидии, субвенции, иных межбюджетных трансфертов)
A13: за 1 полугодие 2019 года
A16: № п/п | B16: Наименование мероприятия | C16: Наименование муниципальной программы | D16: Наименование показателей результативности субсидии, в соответствии с соглашением | E16: Единица измерения | F16: Плановое значение, в соответствии с соглашением | G16: Фактическое значение | H16: Причины невыполнения
B18: 1 | C18: 2 | D18: 3 | E18: 4 | F18: 5 | G18: 6 | H18: 7
A19: 1.1 | B19: На реализацию муниципальных программ, направленных на организацию благоустройства территорий городских округов, поселений, в том числе территорий соответствующего функционального назначения (площадей, набережных, улиц, пешеходных зон, скверов, парков, иных территорий), дворовых территорий, за исключением мероприятий, указанных в п. 1.3.1 приложения № 1 к подпрограмме "Развитие благоустройства населенных пунктов Краснодарского края" государственной программы Краснодарского края "Развитие жилищно-коммунального хозяйства" | C19: Формирование современной городской среды | D19: Количество благоустроенных дворовых территорий (Ед) 12 | E19: Единица | F19: 12
D20: Количество благоустроенных общественных территорий (Ед) 4 | E20: Единица | F20: 4
B23: Директор департамента городского хозяйства администрации города Сочи | H23: А.С. Мамлай
